[Event "Early-Titled-Tuesday-Blitz-March-05-2024"]
[Site "Chess.com"]
[Date "2024.03.05"]
[Round "11"]
[White "FredddieCroderg"]
[Black "pfalcon1949"]
[Result "1-0"]
[WhiteElo "2275"]
[BlackElo "1952"]
[TimeControl "180+1"]
[EndTime "10:05:09 PST"]
[Termination "FredddieCroderg won by resignation"]

1. e4 {[%clk 0:03:00.9]} 1... e6 {[%clk 0:02:59.4]} 2. d4 {[%clk 0:03:00]} 2...
d5 {[%clk 0:02:59]} 3. exd5 {[%clk 0:03:00.9]} 3... exd5 {[%clk 0:02:58.9]} 4.
Bd3 {[%clk 0:03:01.4]} 4... c5 {[%clk 0:02:58.2]} 5. Nf3 {[%clk 0:03:02.2]} 5...
c4 {[%clk 0:02:58.2]} 6. Be2 {[%clk 0:03:02.7]} 6... Bd6 {[%clk 0:02:57.3]} 7.
O-O {[%clk 0:03:03.2]} 7... Ne7 {[%clk 0:02:56.9]} 8. b3 {[%clk 0:03:03.8]} 8...
cxb3 {[%clk 0:02:55.4]} 9. axb3 {[%clk 0:03:04.7]} 9... O-O {[%clk 0:02:55.3]}
10. c4 {[%clk 0:03:05.6]} 10... b6 {[%clk 0:02:41.4]} 11. Ba3 {[%clk 0:03:03.2]}
11... Bb7 {[%clk 0:02:40.2]} 12. c5 {[%clk 0:03:01.7]} 12... bxc5 {[%clk
0:02:39.3]} 13. dxc5 {[%clk 0:03:01.8]} 13... Bc7 {[%clk 0:02:38.1]} 14. Nd4
{[%clk 0:03:01.1]} 14... Nbc6 {[%clk 0:02:36]} 15. b4 {[%clk 0:02:59.9]} 15...
Ng6 {[%clk 0:02:32.4]} 16. b5 {[%clk 0:02:57.3]} 16... Bxh2+ {[%clk 0:02:23.2]}
17. Kxh2 {[%clk 0:02:54.8]} 17... Qh4+ {[%clk 0:02:23.6]} 18. Kg1 {[%clk
0:02:54.4]} 18... Nxd4 {[%clk 0:02:23.5]} 19. c6 {[%clk 0:02:50.8]} 19... Bc8
{[%clk 0:02:18.6]} 20. Bxf8 {[%clk 0:02:48.1]} 20... Nxf8 {[%clk 0:01:58.5]} 21.
g3 {[%clk 0:02:28.4]} 21... Qe4 {[%clk 0:01:49.8]} 22. Nc3 {[%clk 0:02:18.1]}
22... Bh3 {[%clk 0:01:42.8]} 23. Nxe4 {[%clk 0:02:13.5]} 1-0

[Event "Early-Titled-Tuesday-Blitz-March-05-2024"]
[Site "Chess.com"]
[Date "2024.03.05"]
[Round "11"]
[White "Aleksandar-Topalov"]
[Black "toninhojit"]
[Result "0-1"]
[WhiteElo "2359"]
[BlackElo "2503"]
[TimeControl "180+1"]
[EndTime "10:05:41 PST"]
[Termination "toninhojit won by resignation"]

1. b3 {[%clk 0:03:00.9]} 1... d5 {[%clk 0:02:59.3]} 2. Bb2 {[%clk 0:03:01.1]}
2... Nf6 {[%clk 0:02:59.9]} 3. Nf3 {[%clk 0:03:01.1]} 3... g6 {[%clk 0:03:00.4]}
4. c4 {[%clk 0:02:59.9]} 4... Bg7 {[%clk 0:03:00]} 5. cxd5 {[%clk 0:02:59.7]}
5... Qxd5 {[%clk 0:03:00.4]} 6. g3 {[%clk 0:03:00]} 6... O-O {[%clk 0:03:00]} 7.
Bg2 {[%clk 0:03:00.1]} 7... Qd8 {[%clk 0:02:58.9]} 8. O-O {[%clk 0:03:00]} 8...
c5 {[%clk 0:02:59.6]} 9. d3 {[%clk 0:02:59.7]} 9... Nc6 {[%clk 0:03:00]} 10.
Nbd2 {[%clk 0:02:58.6]} 10... Be6 {[%clk 0:02:52.4]} 11. Rc1 {[%clk 0:02:52.5]}
11... b6 {[%clk 0:02:52]} 12. a3 {[%clk 0:02:49]} 12... Rc8 {[%clk 0:02:52]} 13.
Nc4 {[%clk 0:02:46.1]} 13... Bd5 {[%clk 0:02:44.4]} 14. Qd2 {[%clk 0:02:38.9]}
14... Qd7 {[%clk 0:02:26.5]} 15. b4 {[%clk 0:02:38]} 15... cxb4 {[%clk 0:02:19]}
16. axb4 {[%clk 0:02:38.1]} 16... Rfd8 {[%clk 0:01:58.6]} 17. b5 {[%clk
0:02:35]} 17... Nb8 {[%clk 0:01:59.2]} 18. Qb4 {[%clk 0:02:33.2]} 18... e6
{[%clk 0:01:49.8]} 19. Nce5 {[%clk 0:02:24.3]} 19... Qe8 {[%clk 0:01:45.6]} 20.
Nd4 {[%clk 0:01:50.8]} 20... Bxg2 {[%clk 0:01:42.1]} 21. Kxg2 {[%clk 0:01:49.5]}
21... Nd5 {[%clk 0:01:42.4]} 0-1

[Event "Early-Titled-Tuesday-Blitz-March-05-2024"]
[Site "Chess.com"]
[Date "2024.03.05"]
[Round "11"]
[White "nicolasbatista3"]
[Black "lamomiajunior"]
[Result "0-1"]
[WhiteElo "2482"]
[BlackElo "2709"]
[TimeControl "180+1"]
[EndTime "10:05:59 PST"]
[Termination "lamomiajunior won by resignation"]

1. d4 {[%clk 0:03:00.9]} 1... Nf6 {[%clk 0:02:58.7]} 2. c4 {[%clk 0:03:01.5]}
2... e6 {[%clk 0:02:59.1]} 3. Nc3 {[%clk 0:03:02.1]} 3... g6 {[%clk 0:02:58.5]}
4. e4 {[%clk 0:03:02.1]} 4... Bg7 {[%clk 0:02:58.7]} 5. Be3 {[%clk 0:02:59.4]}
5... d6 {[%clk 0:02:59]} 6. h4 {[%clk 0:02:55.2]} 6... h5 {[%clk 0:02:56.5]} 7.
Be2 {[%clk 0:02:53]} 7... b6 {[%clk 0:02:56.4]} 8. g4 {[%clk 0:02:40.6]} 8...
hxg4 {[%clk 0:02:55.9]} 9. Bxg4 {[%clk 0:02:41.5]} 9... Nxg4 {[%clk 0:02:55.9]}
10. Qxg4 {[%clk 0:02:42]} 10... e5 {[%clk 0:02:54.2]} 11. Qd1 {[%clk 0:02:41.6]}
11... Rxh4 {[%clk 0:02:51.6]} 12. Rxh4 {[%clk 0:02:37.4]} 12... Qxh4 {[%clk
0:02:52.5]} 13. Qd2 {[%clk 0:02:33.2]} 13... Bg4 {[%clk 0:02:47.3]} 14. Nd5
{[%clk 0:02:28.5]} 14... Qh1 {[%clk 0:02:45.5]} 15. f3 {[%clk 0:02:22.8]} 15...
exd4 {[%clk 0:02:40.7]} 16. Bxd4 {[%clk 0:01:35.8]} 16... Nc6 {[%clk 0:02:36.4]}
17. Bf2 {[%clk 0:01:16.8]} 17... Bxf3 {[%clk 0:02:21.8]} 18. Nxc7+ {[%clk
0:01:16.6]} 18... Kd7 {[%clk 0:02:21.8]} 19. Nxa8 {[%clk 0:01:16.8]} 19... Ne5
{[%clk 0:02:19.7]} 20. Qd5 {[%clk 0:01:07.1]} 20... Bxe4 {[%clk 0:02:15.3]} 21.
Qb5+ {[%clk 0:01:00]} 21... Bc6 {[%clk 0:02:15]} 22. Qa6 {[%clk 0:00:58.1]}
22... Nd3+ {[%clk 0:02:12.9]} 23. Kf1 {[%clk 0:00:54.9]} 23... Qg2+ {[%clk
0:02:11.1]} 0-1

[Event "Early-Titled-Tuesday-Blitz-March-05-2024"]
[Site "Chess.com"]
[Date "2024.03.05"]
[Round "11"]
[White "corvachesky"]
[Black "kids2010"]
[Result "0-1"]
[WhiteElo "2521"]
[BlackElo "2787"]
[TimeControl "180+1"]
[EndTime "10:06:12 PST"]
[Termination "kids2010 won by resignation"]

1. Nf3 {[%clk 0:03:00.9]} 1... d5 {[%clk 0:03:00.2]} 2. d4 {[%clk 0:03:00.3]}
2... Nf6 {[%clk 0:02:58.2]} 3. g3 {[%clk 0:02:59.1]} 3... c6 {[%clk 0:02:57.2]}
4. Bg2 {[%clk 0:02:59.3]} 4... Bf5 {[%clk 0:02:56.8]} 5. c4 {[%clk 0:02:58.9]}
5... e6 {[%clk 0:02:57]} 6. Nc3 {[%clk 0:02:59.1]} 6... Nbd7 {[%clk 0:02:50.6]}
7. Qb3 {[%clk 0:02:58.4]} 7... Qb6 {[%clk 0:02:50.2]} 8. c5 {[%clk 0:02:59]}
8... Qxb3 {[%clk 0:02:50.1]} 9. axb3 {[%clk 0:02:59.9]} 9... a6 {[%clk
0:02:47.1]} 10. h3 {[%clk 0:02:54.4]} 10... h6 {[%clk 0:02:46]} 11. g4 {[%clk
0:02:52.7]} 11... Bh7 {[%clk 0:02:38]} 12. Bf4 {[%clk 0:02:52.8]} 12... Ne4
{[%clk 0:02:36.6]} 13. O-O {[%clk 0:02:41.3]} 13... g5 {[%clk 0:02:32]} 14. Bh2
{[%clk 0:02:38.7]} 14... Bg7 {[%clk 0:02:32.4]} 15. e3 {[%clk 0:02:36.3]} 15...
O-O {[%clk 0:02:28]} 16. Nxe4 {[%clk 0:02:34.4]} 16... Bxe4 {[%clk 0:02:25.3]}
17. Nd2 {[%clk 0:02:35.3]} 17... Bxg2 {[%clk 0:02:23.8]} 18. Kxg2 {[%clk
0:02:36.2]} 18... e5 {[%clk 0:02:24.3]} 19. Nf3 {[%clk 0:02:31.6]} 19... Rae8
{[%clk 0:02:21.8]} 20. b4 {[%clk 0:02:30.5]} 20... f5 {[%clk 0:02:21.7]} 21.
gxf5 {[%clk 0:02:26.8]} 21... Rxf5 {[%clk 0:02:22.6]} 22. dxe5 {[%clk
0:02:23.5]} 22... Nxe5 {[%clk 0:02:21.5]} 23. Nxe5 {[%clk 0:02:24]} 23... Bxe5
{[%clk 0:02:21.8]} 24. Bxe5 {[%clk 0:02:24.5]} 24... Rfxe5 {[%clk 0:02:22.2]}
25. Rfd1 {[%clk 0:02:24.2]} 25... Re4 {[%clk 0:02:21.5]} 26. Rd4 {[%clk
0:02:08.4]} 26... Rxd4 {[%clk 0:02:16.3]} 27. exd4 {[%clk 0:02:09.3]} 27... Re2
{[%clk 0:02:16.8]} 28. Rb1 {[%clk 0:01:59.9]} 28... Rd2 {[%clk 0:02:13.4]} 29.
Re1 {[%clk 0:01:54.1]} 29... Kf7 {[%clk 0:02:10]} 30. h4 {[%clk 0:01:48.7]}
30... gxh4 {[%clk 0:02:02.9]} 31. Re3 {[%clk 0:01:41.1]} 31... Rxd4 {[%clk
0:02:01.5]} 32. Rb3 {[%clk 0:01:41.6]} 32... Rf4 {[%clk 0:01:59.3]} 33. f3
{[%clk 0:01:40.8]} 33... Kf6 {[%clk 0:01:58.9]} 34. Kh3 {[%clk 0:01:34.4]} 34...
d4 {[%clk 0:01:59.1]} 35. Rd3 {[%clk 0:01:33]} 35... Ke6 {[%clk 0:01:59.2]} 0-1

[Event "Early-Titled-Tuesday-Blitz-March-05-2024"]
[Site "Chess.com"]
[Date "2024.03.05"]
[Round "11"]
[White "dianamirza"]
[Black "Kapitan_Bayan"]
[Result "0-1"]
[WhiteElo "2009"]
[BlackElo "2282"]
[TimeControl "180+1"]
[EndTime "10:06:29 PST"]
[Termination "Kapitan_Bayan won by resignation"]

1. e4 {[%clk 0:03:00.9]} 1... c5 {[%clk 0:03:00.1]} 2. c4 {[%clk 0:02:57.6]}
2... Nc6 {[%clk 0:02:59.5]} 3. Nc3 {[%clk 0:02:58.5]} 3... g6 {[%clk 0:02:59.3]}
4. g3 {[%clk 0:02:59.3]} 4... Bg7 {[%clk 0:02:59.5]} 5. Bg2 {[%clk 0:03:00.1]}
5... e6 {[%clk 0:02:57.7]} 6. d3 {[%clk 0:03:00.5]} 6... Nge7 {[%clk 0:02:57.3]}
7. Be3 {[%clk 0:03:01.1]} 7... Nd4 {[%clk 0:02:56.7]} 8. Qd2 {[%clk 0:03:01.5]}
8... O-O {[%clk 0:02:53.9]} 9. Nge2 {[%clk 0:03:02.2]} 9... Qc7 {[%clk
0:02:49.7]} 10. O-O {[%clk 0:03:02.3]} 10... a6 {[%clk 0:02:45.3]} 11. Bh6
{[%clk 0:03:02.5]} 11... Nec6 {[%clk 0:02:36.4]} 12. Bxg7 {[%clk 0:03:02.5]}
12... Kxg7 {[%clk 0:02:37.3]} 13. f4 {[%clk 0:02:59.7]} 13... b6 {[%clk
0:02:35.3]} 14. g4 {[%clk 0:02:54]} 14... Bb7 {[%clk 0:02:29.2]} 15. f5 {[%clk
0:02:54.2]} 15... exf5 {[%clk 0:02:20.7]} 16. gxf5 {[%clk 0:02:53.1]} 16... f6
{[%clk 0:02:18.2]} 17. Nd5 {[%clk 0:02:48.9]} 17... Qe5 {[%clk 0:02:04.9]} 18.
Nxb6 {[%clk 0:02:45.2]} 18... Nxe2+ {[%clk 0:02:04.4]} 19. Qxe2 {[%clk
0:02:43.4]} 19... Nd4 {[%clk 0:02:04.8]} 20. Qg4 {[%clk 0:02:36.4]} 20... Rad8
{[%clk 0:01:51.3]} 21. fxg6 {[%clk 0:02:35.8]} 21... Qe6 {[%clk 0:01:50.6]} 22.
gxh7+ {[%clk 0:02:33.7]} 22... Qxg4 {[%clk 0:01:50.4]} 23. Kh1 {[%clk
0:02:26.8]} 23... Kxh7 {[%clk 0:01:45.8]} 24. Nd5 {[%clk 0:02:22.9]} 24... Bxd5
{[%clk 0:01:44.8]} 25. exd5 {[%clk 0:02:21.9]} 25... f5 {[%clk 0:01:44.4]} 26.
Rae1 {[%clk 0:02:17.2]} 26... Rf7 {[%clk 0:01:42.8]} 27. Rg1 {[%clk 0:02:13.8]}
27... Ne2 {[%clk 0:01:38.9]} 28. Rgf1 {[%clk 0:02:00.3]} 28... Nf4 {[%clk
0:01:38.7]} 29. Bf3 {[%clk 0:01:59]} 29... Qh4 {[%clk 0:01:37.7]} 30. d6 {[%clk
0:01:52.9]} 30... Rh8 {[%clk 0:01:33.5]} 31. Bd5 {[%clk 0:01:44.2]} 31... Rg7
{[%clk 0:01:30.6]} 32. d4 {[%clk 0:01:37.7]} 32... Kg6 {[%clk 0:01:25.7]} 0-1

[Event "Early-Titled-Tuesday-Blitz-March-05-2024"]
[Site "Chess.com"]
[Date "2024.03.05"]
[Round "11"]
[White "Neijin"]
[Black "Let_it_be_1"]
[Result "0-1"]
[WhiteElo "2711"]
[BlackElo "2599"]
[TimeControl "180+1"]
[EndTime "10:06:35 PST"]
[Termination "Let_it_be_1 won by checkmate"]

1. e4 {[%clk 0:03:00.9]} 1... e6 {[%clk 0:03:00.2]} 2. d4 {[%clk 0:03:01]} 2...
d5 {[%clk 0:03:01.1]} 3. Nd2 {[%clk 0:03:01.4]} 3... Nf6 {[%clk 0:03:01.1]} 4.
e5 {[%clk 0:03:01.6]} 4... Nfd7 {[%clk 0:03:01.5]} 5. Bd3 {[%clk 0:03:01.7]}
5... c5 {[%clk 0:03:01.9]} 6. c3 {[%clk 0:03:02.3]} 6... Nc6 {[%clk 0:03:02.3]}
7. Ne2 {[%clk 0:03:02.8]} 7... f6 {[%clk 0:03:02.8]} 8. exf6 {[%clk 0:03:02.7]}
8... Nxf6 {[%clk 0:03:03.7]} 9. Nf3 {[%clk 0:03:03.5]} 9... Bd6 {[%clk
0:03:03.3]} 10. Bg5 {[%clk 0:03:03.3]} 10... O-O {[%clk 0:03:02.6]} 11. O-O
{[%clk 0:02:59.5]} 11... Qc7 {[%clk 0:03:02.5]} 12. Qc2 {[%clk 0:02:53]} 12...
c4 {[%clk 0:03:02.1]} 13. Bxc4 {[%clk 0:02:28.8]} 13... dxc4 {[%clk 0:03:01.7]}
14. Ng3 {[%clk 0:02:29.6]} 14... e5 {[%clk 0:02:54.3]} 15. Rae1 {[%clk
0:02:26.3]} 15... exd4 {[%clk 0:02:52.4]} 16. cxd4 {[%clk 0:02:26.8]} 16... Nb4
{[%clk 0:02:48.8]} 17. Qd2 {[%clk 0:02:20.5]} 17... Nd3 {[%clk 0:02:43]} 18. Re2
{[%clk 0:02:20.1]} 18... Bg4 {[%clk 0:02:40]} 19. b3 {[%clk 0:02:19.9]} 19...
Bxf3 {[%clk 0:02:32.1]} 20. gxf3 {[%clk 0:02:20.8]} 20... Bf4 {[%clk 0:02:29.5]}
21. Bxf4 {[%clk 0:02:18]} 21... Nxf4 {[%clk 0:02:29]} 22. Re3 {[%clk 0:02:16.4]}
22... N6d5 {[%clk 0:02:21]} 23. Re5 {[%clk 0:02:16.2]} 23... c3 {[%clk
0:02:19.6]} 24. Qc2 {[%clk 0:02:16.9]} 24... Nb4 {[%clk 0:02:03.9]} 25. Qe4
{[%clk 0:02:10.7]} 25... Nbd3 {[%clk 0:01:48.1]} 26. Re7 {[%clk 0:02:07]} 26...
Qc6 {[%clk 0:01:45.7]} 27. d5 {[%clk 0:01:43.1]} 27... Qxd5 {[%clk 0:01:41.9]}
28. Qe3 {[%clk 0:01:40.4]} 28... c2 {[%clk 0:01:35.2]} 29. Rc7 {[%clk
0:01:31.4]} 29... Rae8 {[%clk 0:01:24.5]} 30. Qxa7 {[%clk 0:01:31.4]} 30... Qxf3
{[%clk 0:01:20.6]} 31. h3 {[%clk 0:01:30.8]} 31... Qg2# {[%clk 0:01:20.3]} 0-1

[Event "Early-Titled-Tuesday-Blitz-March-05-2024"]
[Site "Chess.com"]
[Date "2024.03.05"]
[Round "11"]
[White "MeesvanOsch"]
[Black "sergeikim"]
[Result "0-1"]
[WhiteElo "2370"]
[BlackElo "2567"]
[TimeControl "180+1"]
[EndTime "10:06:54 PST"]
[Termination "sergeikim won by checkmate"]

1. e4 {[%clk 0:02:47.5]} 1... e5 {[%clk 0:02:59.9]} 2. Nf3 {[%clk 0:02:45.7]}
2... Nc6 {[%clk 0:03:00]} 3. c3 {[%clk 0:02:42.3]} 3... d5 {[%clk 0:02:59.2]} 4.
Qa4 {[%clk 0:02:41.6]} 4... f6 {[%clk 0:02:58.3]} 5. d4 {[%clk 0:02:41]} 5...
dxe4 {[%clk 0:02:55.1]} 6. d5 {[%clk 0:02:39.9]} 6... Qxd5 {[%clk 0:02:30.5]} 7.
Bc4 {[%clk 0:02:40.1]} 7... Qa5 {[%clk 0:02:26.5]} 8. Qb3 {[%clk 0:02:33.9]}
8... exf3 {[%clk 0:02:24.6]} 9. Bxg8 {[%clk 0:02:27.8]} 9... Rxg8 {[%clk
0:02:17.4]} 10. Qxg8 {[%clk 0:02:28.7]} 10... fxg2 {[%clk 0:02:17]} 11. Rg1
{[%clk 0:02:25.4]} 11... Qa4 {[%clk 0:02:08.9]} 12. Be3 {[%clk 0:02:17.4]} 12...
Bf5 {[%clk 0:01:59.8]} 13. Rxg2 {[%clk 0:02:10.5]} 13... O-O-O {[%clk
0:01:46.1]} 14. Qb3 {[%clk 0:02:11]} 14... Qe4 {[%clk 0:01:41.5]} 15. Rg1 {[%clk
0:02:05.6]} 15... Qh4 {[%clk 0:01:20.8]} 16. Nd2 {[%clk 0:02:00.2]} 16... Qh5
{[%clk 0:01:16.7]} 17. h4 {[%clk 0:01:47.2]} 17... Qxh4 {[%clk 0:01:11.5]} 18.
O-O-O {[%clk 0:01:46.7]} 18... Qh5 {[%clk 0:01:06.4]} 19. a4 {[%clk 0:01:33]}
19... Qe8 {[%clk 0:01:04.2]} 20. Qb5 {[%clk 0:01:25.8]} 20... a6 {[%clk
0:01:02.4]} 21. Qe2 {[%clk 0:01:19.3]} 21... Qe6 {[%clk 0:00:59.6]} 22. b3
{[%clk 0:01:16.8]} 22... Ba3# {[%clk 0:00:52]} 0-1

[Event "Early-Titled-Tuesday-Blitz-March-05-2024"]
[Site "Chess.com"]
[Date "2024.03.05"]
[Round "11"]
[White "Dale"]
[Black "kyuotbi"]
[Result "0-1"]
[WhiteElo "2109"]
[BlackElo "2307"]
[TimeControl "180+1"]
[EndTime "10:06:57 PST"]
[Termination "kyuotbi won by checkmate"]

1. Nf3 {[%clk 0:03:00.9]} 1... Nf6 {[%clk 0:02:59.4]} 2. h3 {[%clk 0:03:01]}
2... g6 {[%clk 0:02:59.1]} 3. g4 {[%clk 0:03:01]} 3... Bg7 {[%clk 0:02:59.7]} 4.
g5 {[%clk 0:03:01.5]} 4... Nh5 {[%clk 0:02:59.5]} 5. d4 {[%clk 0:03:00.2]} 5...
d5 {[%clk 0:02:59.1]} 6. c4 {[%clk 0:02:59.5]} 6... dxc4 {[%clk 0:02:56.1]} 7.
Qa4+ {[%clk 0:02:51.3]} 7... Bd7 {[%clk 0:02:56.1]} 8. Qxc4 {[%clk 0:02:51.3]}
8... Bc6 {[%clk 0:02:56.7]} 9. Nc3 {[%clk 0:02:46.5]} 9... Bxf3 {[%clk
0:02:55.9]} 10. exf3 {[%clk 0:02:46.6]} 10... Qxd4 {[%clk 0:02:55.7]} 11. Qb5+
{[%clk 0:02:45.7]} 11... Nd7 {[%clk 0:02:53.9]} 12. Be3 {[%clk 0:02:40]} 12...
Qe5 {[%clk 0:02:49.1]} 13. Qxb7 {[%clk 0:02:33.6]} 13... Rb8 {[%clk 0:02:46.7]}
14. Qxa7 {[%clk 0:02:24.2]} 14... Rxb2 {[%clk 0:02:46.4]} 15. Rc1 {[%clk
0:02:20.5]} 15... O-O {[%clk 0:02:38.2]} 16. Qa6 {[%clk 0:02:03.3]} 16... Nc5
{[%clk 0:02:17.6]} 17. Qc6 {[%clk 0:02:01.2]} 17... Ne6 {[%clk 0:01:48.1]} 18.
Bc4 {[%clk 0:01:50.4]} 18... Nxg5 {[%clk 0:01:40.9]} 19. h4 {[%clk 0:01:38.9]}
19... Ne6 {[%clk 0:01:30.9]} 20. O-O {[%clk 0:01:38.3]} 20... Nef4 {[%clk
0:01:24.6]} 21. Rfe1 {[%clk 0:01:30.9]} 21... Nh3+ {[%clk 0:01:21.4]} 22. Kg2
{[%clk 0:01:22.5]} 22... Qg3+ {[%clk 0:01:17.6]} 23. Kh1 {[%clk 0:01:18.9]}
23... Nxf2+ {[%clk 0:01:16]} 24. Bxf2 {[%clk 0:01:15.4]} 24... Rxf2 {[%clk
0:01:16.6]} 25. Bxf7+ {[%clk 0:01:09.9]} 25... Rxf7 {[%clk 0:01:13.2]} 26. Qe6
{[%clk 0:01:05.2]} 26... Qh2# {[%clk 0:01:11.8]} 0-1

[Event "Early-Titled-Tuesday-Blitz-March-05-2024"]
[Site "Chess.com"]
[Date "2024.03.05"]
[Round "11"]
[White "SahibSinghKnight"]
[Black "FREDERICKtheMATE"]
[Result "1/2-1/2"]
[WhiteElo "2591"]
[BlackElo "2718"]
[TimeControl "180+1"]
[EndTime "10:07:15 PST"]
[Termination "Game drawn by repetition"]

1. e4 {[%clk 0:03:00.9]} 1... c6 {[%clk 0:02:55]} 2. d4 {[%clk 0:02:59.4]} 2...
d5 {[%clk 0:02:55.9]} 3. e5 {[%clk 0:03:00.3]} 3... Bf5 {[%clk 0:02:55.6]} 4.
Nf3 {[%clk 0:02:51.7]} 4... e6 {[%clk 0:02:54.5]} 5. Be2 {[%clk 0:02:51.6]} 5...
Bb4+ {[%clk 0:02:52.1]} 6. c3 {[%clk 0:02:49.3]} 6... Ba5 {[%clk 0:02:51.5]} 7.
O-O {[%clk 0:02:48.8]} 7... Ne7 {[%clk 0:02:50.5]} 8. a4 {[%clk 0:02:48.5]} 8...
h6 {[%clk 0:02:47.9]} 9. Nbd2 {[%clk 0:02:43.7]} 9... O-O {[%clk 0:02:47.3]} 10.
Ne1 {[%clk 0:02:42.4]} 10... Nd7 {[%clk 0:02:45.6]} 11. f4 {[%clk 0:02:40.2]}
11... Bh7 {[%clk 0:02:45.9]} 12. b4 {[%clk 0:02:38]} 12... Bc7 {[%clk
0:02:44.7]} 13. Bd3 {[%clk 0:02:36.7]} 13... Bxd3 {[%clk 0:02:42.3]} 14. Nxd3
{[%clk 0:02:36.6]} 14... f5 {[%clk 0:02:43.2]} 15. exf6 {[%clk 0:02:31.3]} 15...
Rxf6 {[%clk 0:02:42.2]} 16. Ne5 {[%clk 0:02:27.7]} 16... Nxe5 {[%clk 0:02:41]}
17. fxe5 {[%clk 0:02:26.5]} 17... Rxf1+ {[%clk 0:02:39.5]} 18. Nxf1 {[%clk
0:02:26]} 18... Qf8 {[%clk 0:02:39.9]} 19. Qg4 {[%clk 0:02:24.4]} 19... Qf5
{[%clk 0:02:37.8]} 20. Qxf5 {[%clk 0:02:22.5]} 20... Nxf5 {[%clk 0:02:38.7]} 21.
Ne3 {[%clk 0:02:21.2]} 21... Rf8 {[%clk 0:02:37.1]} 22. Nxf5 {[%clk 0:02:19.2]}
22... Rxf5 {[%clk 0:02:38]} 23. Be3 {[%clk 0:02:19.2]} 23... Kf7 {[%clk
0:02:37]} 24. Rf1 {[%clk 0:02:19]} 24... Kg6 {[%clk 0:02:36.1]} 25. g4 {[%clk
0:02:17.7]} 25... Rxf1+ {[%clk 0:02:34.5]} 26. Kxf1 {[%clk 0:02:18.6]} 26... b5
{[%clk 0:02:29.8]} 27. a5 {[%clk 0:02:13.8]} 27... a6 {[%clk 0:02:28.7]} 28. Bf4
{[%clk 0:02:09.8]} 28... Bd8 {[%clk 0:02:26.9]} 29. Kg2 {[%clk 0:02:09.4]} 29...
Bg5 {[%clk 0:02:26.7]} 30. Kf3 {[%clk 0:02:04.4]} 30... Bxf4 {[%clk 0:02:23.5]}
31. Kxf4 {[%clk 0:02:05.3]} 31... h5 {[%clk 0:02:15.3]} 32. h4 {[%clk
0:01:20.4]} 32... Kh6 {[%clk 0:01:36.3]} 33. g5+ {[%clk 0:01:15.1]} 33... Kh7
{[%clk 0:01:35.6]} 34. Kg3 {[%clk 0:01:03.7]} 34... g6 {[%clk 0:01:36.5]} 35.
Kf4 {[%clk 0:01:03.6]} 35... Kg7 {[%clk 0:01:35.9]} 36. Ke3 {[%clk 0:01:03.7]}
36... Kf7 {[%clk 0:01:36.3]} 37. Kd3 {[%clk 0:01:03.8]} 37... Ke7 {[%clk
0:01:36.9]} 38. Ke3 {[%clk 0:01:04.3]} 38... Kd7 {[%clk 0:01:37.5]} 39. Kd3
{[%clk 0:01:04.9]} 39... Kc7 {[%clk 0:01:38.3]} 40. Ke3 {[%clk 0:01:05]} 40...
Kd7 {[%clk 0:01:39.2]} 41. Kd3 {[%clk 0:01:05.2]} 41... Kc7 {[%clk 0:01:40.1]}
42. Ke3 {[%clk 0:01:05.8]} 42... Kc8 {[%clk 0:01:41]} 43. Kd3 {[%clk 0:01:06.3]}
43... Kb7 {[%clk 0:01:41.2]} 44. Ke3 {[%clk 0:01:06.8]} 44... Kc7 {[%clk
0:01:42.1]} 45. Kd3 {[%clk 0:01:07.4]} 45... Kb8 {[%clk 0:01:43]} 46. Ke3 {[%clk
0:01:07.9]} 46... Ka7 {[%clk 0:01:43.9]} 47. Kd3 {[%clk 0:01:08.4]} 47... Kb7
{[%clk 0:01:44.8]} 48. Ke3 {[%clk 0:01:08.9]} 48... Ka8 {[%clk 0:01:45.7]} 49.
Kd3 {[%clk 0:01:09.4]} 49... Ka7 {[%clk 0:01:46.6]} 50. Ke3 {[%clk 0:01:09.7]}
50... Kb8 {[%clk 0:01:47.5]} 51. Kd3 {[%clk 0:01:10.3]} 51... Kc7 {[%clk
0:01:48.4]} 1/2-1/2

[Event "Early-Titled-Tuesday-Blitz-March-05-2024"]
[Site "Chess.com"]
[Date "2024.03.05"]
[Round "11"]
[White "Viktor_Poddubnyi"]
[Black "AttilaTurzo"]
[Result "0-1"]
[WhiteElo "2287"]
[BlackElo "2482"]
[TimeControl "180+1"]
[EndTime "10:07:15 PST"]
[Termination "AttilaTurzo won by resignation"]

1. e4 {[%clk 0:03:00]} 1... c5 {[%clk 0:02:58.8]} 2. Nf3 {[%clk 0:02:59.9]} 2...
d6 {[%clk 0:02:59.1]} 3. d4 {[%clk 0:03:00]} 3... cxd4 {[%clk 0:03:00]} 4. Nxd4
{[%clk 0:03:00.7]} 4... Nf6 {[%clk 0:03:00.9]} 5. Nc3 {[%clk 0:03:00.8]} 5... a6
{[%clk 0:03:01.6]} 6. Bg5 {[%clk 0:03:00.8]} 6... e6 {[%clk 0:02:57.5]} 7. Qf3
{[%clk 0:03:00.7]} 7... Qc7 {[%clk 0:02:54]} 8. Bxf6 {[%clk 0:02:51.3]} 8...
gxf6 {[%clk 0:02:53.8]} 9. Qxf6 {[%clk 0:02:52.2]} 9... Rg8 {[%clk 0:02:54.1]}
10. O-O-O {[%clk 0:02:40.6]} 10... b5 {[%clk 0:02:50.6]} 11. a3 {[%clk
0:01:22.5]} 11... Be7 {[%clk 0:02:30.6]} 12. Qf3 {[%clk 0:01:16.9]} 12... Bb7
{[%clk 0:02:28.1]} 13. Bd3 {[%clk 0:01:12]} 13... Nd7 {[%clk 0:02:24.2]} 14.
Rhe1 {[%clk 0:01:08]} 14... Ne5 {[%clk 0:02:22.8]} 15. Qh3 {[%clk 0:01:05.1]}
15... Ng4 {[%clk 0:02:13.3]} 16. Qxh7 {[%clk 0:00:54.5]} 16... O-O-O {[%clk
0:01:55.9]} 17. Kb1 {[%clk 0:00:37.8]} 17... Nxf2 {[%clk 0:01:48.1]} 18. Rd2
{[%clk 0:00:31.7]} 18... Nxd3 {[%clk 0:01:44.5]} 19. cxd3 {[%clk 0:00:28.4]}
19... Bf6 {[%clk 0:01:41.7]} 20. Nf3 {[%clk 0:00:18]} 20... Rh8 {[%clk
0:01:41.4]} 0-1